bitfinex-derivatives/quotes_BNBF0:USTF0_20251010
["timestamp","ask_amount","ask_price","bid_price","bid_amount"]
[1760131588780,3.8119643,1068.2,1029.8,0.16392169]
[1760131590978,3.8119643,1068.2,1012.9,7.4214957]
[1760131591282,3.8119643,1068.2,1028.4,0.16817891]
[1760131591481,3.4943006,1064.8,1012.9,7.4214957]
[1760131591777,3.4943006,1064.8,1027.0,0.16827446]
[1760131592180,3.4943006,1064.8,1008.9,7.4214957]
[1760131592378,3.4943006,1064.8,1024.8,0.16856259]
[1760131592577,3.4943006,1064.8,1008.9,7.4214957]
[1760131592778,3.4943006,1064.8,1007.5,7.4214957]
[1760131593079,3.4943006,1064.8,1023.2,0.16883123]
[1760131593379,3.4943006,1064.8,1007.5,7.4214957]
[1760131593579,3.4943006,1064.8,1021.8,0.16894065]
[1760131594179,4.7649554,1055.3,1021.8,0.16894065]
[1760131594782,4.7649554,1055.3,1005.2,7.4214957]
[1760131595083,4.7649554,1055.3,1020.0,0.16965017]
[1760131595380,4.7649554,1055.3,1004.3,6.9267293]
[1760131595679,4.7649554,1055.3,1018.0,0.16983149]
[1760131595879,4.7649554,1055.3,1002.9,7.4214957]
[1760131596182,4.7649554,1055.3,1017.1,0.17004185]
[1760131596481,4.7649554,1055.3,1002.4,7.4214957]
[1760131596781,4.7649554,1055.3,1014.7,0.17016283]
[1760131597081,4.7649554,1055.3,1002.4,7.4214957]
[1760131597281,4.7649554,1055.3,1014.8,0.17019737]
[1760131597585,4.7649554,1055.3,996.89,7.4214957]
[1760131597880,4.7649554,1055.3,1013.9,0.17029564]
[1760131598086,4.7649554,1055.3,996.89,7.4214957]
[1760131598386,4.7649554,1055.3,1013.6,0.17055855]
[1760131598687,4.7649554,1055.3,996.89,7.4214957]
[1760131598985,4.7649554,1055.3,1013.5,0.17059576]
[1760131599181,4.7649554,1055.3,996.89,7.4214957]
[1760131599482,4.7649554,1055.3,1013.3,0.17062169]
[1760131599787,4.7649554,1055.3,996.89,7.4214957]
[1760131600088,4.4472917,1051.4,1012.5,0.17067315]
[1760131600289,4.4472917,1051.4,996.89,7.4214957]
[1760131600587,4.4472917,1051.4,1010.7,0.17091624]
[1760131600890,4.4472917,1051.4,996.89,7.4214957]
[1760131601191,4.4472917,1051.4,1010.8,0.17094059]
[1760131601385,4.4472917,1051.4,996.89,7.4214957]
[1760131601790,4.4472917,1051.4,1010.5,0.17093219]
[1760131602491,4.4472917,1051.4,996.89,7.4214957]
[1760131602786,4.4472917,1051.4,1010.6,0.17095781]
[1760131605992,4.4472917,1055.0,1010.6,0.17095781]
[1760131606189,4.4472917,1055.2,1010.6,0.17095781]
[1760131606392,4.7649554,1055.3,1010.6,0.17095781]
[1760131606894,4.7649554,1062.4,1010.6,0.17095781]
[1760131607489,4.7649554,1062.7,1010.6,0.17095781]
[1760131607990,3.4943006,1064.8,1010.6,0.17095781]
[1760131608190,4.7649554,1068.7,1010.6,0.17095781]
[1760131608393,4.7649554,1067.5,1010.6,0.17095781]
[1760131608690,4.7649554,1071.5,1010.6,0.17095781]
[1760131609389,4.4472917,1072.6,1010.6,0.17095781]
[1760131609390,4.7649554,1071.6,1010.6,0.17095781]
[1760131609993,4.7649554,1076.0,1010.6,0.17095781]
[1760131610394,4.7649554,1076.6,1010.6,0.17095781]
[1760131610896,4.7649554,1079.1,1010.6,0.17095781]
[1760131612195,4.7649554,1083.9,1010.6,0.17095781]
[1760131613194,4.7649554,1085.7,1010.6,0.17095781]
[1760131618200,7.9415924,1083.8,1010.6,0.17095781]
[1760131625703,4.7649554,1085.7,1010.6,0.17095781]
[1760131627506,4.7649554,1067.2,1010.6,0.17095781]
[1760131630211,4.4472917,1061.1,1010.6,0.17095781]
[1760131630710,4.4472917,1065.6,1010.6,0.17095781]
[1760131632114,4.7649554,1063.2,1010.6,0.17095781]
[1760131633518,4.7649554,1063.2,1013.4,7.4214957]
[1760131633717,4.7649554,1063.2,1010.9,7.4214957]
[1760131634515,4.4472917,1064.2,1010.9,7.4214957]
[1760131638819,4.4472917,1064.2,1011.4,7.4214957]
[1760131641320,4.4472917,1064.2,1010.6,0.17095781]
[1760131641620,3.4943006,1066.9,1010.6,0.17095781]
[1760131641823,3.1766369,1088.6,1010.6,0.17095781]
[1760131644727,6.806073,1053.0,1007.9,11.480077]
[1760131645127,6.806073,1053.0,1014.0,0.16928417]
[1760131653132,6.806073,1053.0,1004.0,11.480077]
[1760131653429,6.806073,1053.0,1013.2,0.17039362]
[1760131654134,6.806073,1053.0,1003.9,11.480077]
[1760131654434,6.806073,1053.0,1011.6,0.17053724]
[1760131654632,6.806073,1053.0,1003.9,11.480077]
[1760131654931,6.806073,1053.0,1010.0,0.17065934]
[1760131655231,6.806073,1053.0,1003.9,11.480077]
[1760131655730,6.806073,1053.0,1000.9,11.480077]
[1760131656031,6.806073,1053.0,976.9,13.776093]
[1760131656032,6.806073,1053.0,1007.1,0.17092044]
[1760131656335,6.806073,1053.0,998.05,11.480077]
[1760131656537,6.806073,1053.0,991.56,8.4187237]
[1760131656538,6.806073,1053.0,995.12,11.480077]
[1760131656838,6.806073,1053.0,1006.3,0.1712333]
[1760131657137,6.806073,1053.0,1005.6,0.17141548]
[1760131657538,6.806073,1053.0,993.79,11.480077]
[1760131657736,6.806073,1053.0,1002.0,0.17168822]
[1760131658038,6.806073,1053.0,993.79,11.480077]
[1760131658335,6.806073,1053.0,1001.4,0.17181834]
[1760131658535,6.806073,1053.0,993.79,11.480077]
[1760131658839,6.806073,1053.0,1000.1,0.17195205]
[1760131659136,6.806073,1053.0,993.79,11.480077]
[1760131659341,6.806073,1038.6,997.78,0.17212215]
[1760131659840,6.806073,1038.6,993.26,11.480077]
[1760131660040,6.806073,1038.6,997.61,0.17280162]
[1760131660339,6.806073,1038.6,988.96,9.1840623]
[1760131660340,6.806073,1038.6,990.92,11.480077]
[1760131660639,6.806073,1038.6,996.54,0.17288962]
[1760131660936,6.806073,1038.6,990.92,11.480077]
[1760131661140,6.806073,1038.6,995.21,0.17309601]
[1760131661441,6.806073,1038.6,990.92,11.480077]
[1760131661741,6.806073,1038.6,992.67,0.17332619]
[1760131662037,6.806073,1038.6,988.7,11.480077]
[1760131662038,6.3523348,1036.0,988.7,11.480077]
[1760131662339,6.3523348,1036.0,990.99,0.17357128]
[1760131662638,6.3523348,1036.0,988.7,11.480077]
[1760131662842,6.3523348,1036.0,985.42,11.480077]
[1760131663442,6.3523348,1036.0,989.47,0.17396999]
[1760131663739,6.3523348,1036.0,985.42,11.480077]
[1760131664040,6.3523348,1036.0,987.91,0.17406876]
[1760131664343,6.3523348,1036.0,985.42,11.480077]
[1760131664544,6.3523348,1036.0,987.79,0.17410316]
[1760131664840,6.3523348,1036.0,985.42,11.480077]
[1760131665141,6.3523348,1036.0,985.82,0.17422955]
[1760131665646,6.3523348,1036.0,985.42,11.480077]
[1760131665942,6.3523348,1036.0,985.82,0.17420774]
[1760131666242,6.3523348,1036.0,985.42,11.480077]
[1760131666445,6.3523348,1036.0,984.54,10.714739]
[1760131666446,6.3523348,1036.0,985.78,0.17415369]
[1760131667849,6.3523348,1036.0,982.54,11.480077]
[1760131668047,6.3523348,1036.0,980.0,11.480077]
[1760131668247,6.3523348,1036.0,982.92,0.17455596]
[1760131668543,6.3523348,1036.0,980.0,11.480077]
[1760131668748,6.3523348,1036.0,983.66,0.17460851]
[1760131669150,6.3523348,1036.0,980.0,11.480077]
[1760131669464,6.3523348,1036.0,981.98,0.17471458]
[1760131670047,6.3523348,1036.0,977.67,11.480077]
[1760131670351,6.3523348,1036.0,981.3,0.17489415]
[1760131670549,6.3523348,1036.0,971.18,8.4187237]
[1760131670550,6.3523348,1036.0,976.67,11.480077]
[1760131670852,6.3523348,1036.0,982.11,0.17482342]
[1760131671450,6.3523348,1036.0,976.67,11.480077]
[1760131671749,6.3523348,1036.0,979.89,0.17509126]
[1760131673250,6.806073,1034.2,979.89,0.17509126]
[1760131677757,6.3523348,1036.0,979.89,0.17509126]
[1760131678055,4.9911202,1037.5,979.89,0.17509126]
[1760131678355,4.537382,1043.0,979.89,0.17509126]
[1760131688359,4.2839412,1032.2,964.38,8.2938334]
[1760131688562,4.2839412,1039.1,964.38,8.2938334]
[1760131688963,4.2839412,1039.1,981.15,0.17285441]
[1760131689258,4.2839412,1045.3,981.15,0.17285441]
[1760131689461,4.2839412,1045.4,981.15,0.17285441]
[1760131689858,4.2839412,1047.8,981.15,0.17285441]
[1760131690358,4.2839412,1048.9,981.15,0.17285441]
[1760131692364,4.2839412,1051.6,981.15,0.17285441]
[1760131695169,3.9983451,1052.7,981.15,0.17285441]
[1760131695367,3.4271529,1056.6,981.15,0.17285441]
[1760131695566,3.1415568,1058.4,981.15,0.17285441]
[1760131695766,2.8559608,1060.3,981.15,0.17285441]
[1760131737504,6.180996,1031.1,986.32,11.473555]
[1760131737903,6.180996,1031.7,987.69,0.17120129]
[1760131742406,6.180996,1032.9,987.69,0.17120129]
[1760131743108,6.180996,1031.7,987.69,0.17120129]
[1760131744005,6.180996,1035.7,987.69,0.17120129]
[1760131744911,6.180996,1035.4,987.69,0.17120129]
[1760131745211,6.180996,1037.0,987.69,0.17120129]
[1760131745509,6.180996,1037.1,987.69,0.17120129]
[1760131747005,6.180996,1038.8,987.69,0.17120129]
[1760131747210,6.180996,1039.0,987.69,0.17120129]
[1760131752113,6.180996,1039.0,985.86,11.473555]
[1760131752310,6.180996,1039.0,988.35,0.17375327]
[1760131753615,6.180996,1039.0,985.86,11.473555]
[1760131753912,6.180996,1039.0,989.13,0.173706]
[1760131754215,6.180996,1039.0,989.52,11.473555]
[1760131756712,5.7689296,1042.9,989.13,0.173706]
[1760131756917,4.5327304,1045.7,989.13,0.173706]
[1760131757218,4.120664,1047.7,989.13,0.173706]
[1760131758020,6.6732209,1026.7,989.13,0.173706]
[1760131762224,6.6732209,1026.7,987.04,12.4909]
[1760131762526,6.6732209,1026.7,987.31,0.17445664]
[1760131762824,6.6732209,1026.7,987.04,12.4909]
[1760131764126,6.6732209,1026.7,987.35,0.17437578]
[1760131764329,6.6732209,1024.8,987.35,0.17437578]
[1760131764829,6.6732209,1028.3,987.04,12.4909]
[1760131765129,6.6732209,1028.3,987.6,0.17443784]
[1760131767430,6.6732209,1029.9,987.6,0.17443784]
[1760131768231,6.6732209,1030.0,987.6,0.17443784]
[1760131772434,6.6732209,1030.0,963.41,12.4909]
[1760131772629,6.6732209,1030.0,985.58,0.17535417]
[1760131772930,6.6732209,1030.0,963.41,12.4909]
[1760131773130,6.6732209,1030.0,986.08,0.17531751]
[1760131773434,6.6732209,1030.0,963.41,12.4909]
[1760131773735,5.3385767,1034.7,985.17,0.17550407]
[1760131773931,4.8936953,1036.7,956.25,9.159994]
[1760131780938,6.3619079,1014.3,974.06,12.578595]
[1760131781341,6.3619079,1014.3,982.56,0.17516396]
[1760131784339,6.3619079,1014.3,968.78,12.578595]
[1760131784542,6.3619079,1014.3,983.69,0.17597621]
[1760131784739,6.3619079,1014.3,968.78,12.578595]
[1760131785042,6.3619079,1014.3,983.81,0.17606703]
[1760131785338,6.3619079,1014.3,968.78,12.578595]
[1760131785643,6.3619079,1014.3,982.9,0.17620565]
[1760131785939,6.3619079,1014.3,968.78,12.578595]
[1760131786144,6.3619079,1014.3,982.56,0.17622707]
[1760131786444,6.3619079,1014.3,968.78,12.578595]
[1760131786742,6.3619079,1014.3,981.02,0.17636237]
[1760131786939,6.3619079,1014.3,966.98,12.578595]
[1760131787343,6.3619079,1014.3,979.89,0.1765749]
[1760131787542,6.3619079,1014.3,966.98,12.578595]
[1760131787839,6.3619079,1014.3,979.23,0.17662419]
[1760131788043,6.3619079,1014.3,966.98,12.578595]
[1760131788340,6.3619079,1014.3,978.92,0.17665199]
[1760131788641,6.3619079,1014.3,966.98,12.578595]
[1760131788944,6.3619079,1014.3,978.97,0.17663361]
[1760131789146,6.3619079,1014.3,966.98,12.578595]
[1760131789441,6.3619079,1014.3,979.42,0.17652027]
[1760131789743,6.3619079,1014.3,966.98,12.578595]
[1760131790042,6.3619079,1014.3,979.73,0.17652251]
[1760131790343,6.3619079,1014.3,966.98,12.578595]
[1760131790544,6.3619079,1014.3,979.85,0.17653415]
[1760131790846,6.3619079,1014.3,964.13,12.578595]
[1760131791042,6.3619079,1014.3,961.35,12.578595]
[1760131791642,6.3619079,1014.3,974.58,0.17672465]
[1760131795244,6.3619079,1006.5,974.58,0.17672465]
[1760131795448,6.3619079,1011.5,974.58,0.17672465]
[1760131795747,5.9377807,1015.1,974.58,0.17672465]
[1760131798147,5.9377807,1005.2,974.58,0.17672465]
[1760131798550,5.9377807,1006.4,974.58,0.17672465]
[1760131801751,5.9377807,1009.0,974.58,0.17672465]
[1760131802650,5.9377807,1010.9,974.58,0.17672465]
[1760131803752,5.0895263,1009.3,974.58,0.17672465]
[1760131804149,5.9377807,1010.9,974.58,0.17672465]
[1760131805550,5.9377807,1010.8,974.58,0.17672465]
[1760131806653,5.9377807,1009.7,974.58,0.17672465]
[1760131806954,5.9377807,1013.8,974.58,0.17672465]
[1760131809755,6.3619079,1001.3,974.58,0.17672465]
[1760131819062,6.18649716,1001.3,945.83,11.740022]
[1760131819261,4.2412719,1014.2,942.71,10.062876]
[1760131819562,4.2412719,1014.2,940.92,9.2243033]
[1760131820264,5.3595956,1013.7,960.01,10.526016]
[1760131820464,5.3595956,1014.7,960.01,10.526016]
[1760131821365,5.3595956,1019.5,960.01,10.526016]
[1760131822064,5.3595956,1019.5,974.7,0.17439413]
[1760131822266,5.3595956,1021.0,974.7,0.17439413]
[1760131822465,3.5730637,1029.2,974.7,0.17439413]
[1760131822466,5.3595956,1023.0,974.7,0.17439413]
[1760131823068,5.3595956,1025.9,974.7,0.17439413]
[1760131823265,5.3595956,1028.0,974.7,0.17439413]
[1760131823768,5.3595956,1029.0,974.7,0.17439413]
[1760131838582,5.3595956,1023.5,974.7,0.17439413]
[1760131838879,5.3595956,1025.7,974.7,0.17439413]
[1760131844587,5.0022892,1027.6,974.7,0.17439413]
[1760131844786,4.2876764,1034.0,974.7,0.17439413]
[1760131845085,3.5730637,1036.5,974.7,0.17439413]
[1760131923747,7.6446364,1051.8,1014.4,12.192187]
[1760131924342,7.6446364,1051.8,1004.7,8.128125]
[1760131924343,7.6446364,1051.8,1011.7,12.192187]
[1760131926843,7.6446364,1055.4,1011.7,12.192187]
[1760131927041,7.6446364,1057.2,1011.7,12.192187]
[1760131928044,7.6446364,1057.6,1011.7,12.192187]
[1760131929344,7.6446364,1060.6,1011.7,12.192187]
[1760131931751,5.6060667,1066.5,1011.7,12.192187]
[1760131931950,7.6446364,1066.8,1011.7,12.192187]
[1760131932753,7.6446364,1069.1,1011.7,12.192187]
[1760131935055,7.6446364,1071.0,1011.7,12.192187]
[1760131939559,7.6446364,1071.0,1018.2,12.192187]
[1760131939762,7.6446364,1072.6,1018.2,12.192187]
[1760131940061,7.6446364,1072.6,1014.6,12.192187]
[1760131945865,7.6446364,1080.1,1014.6,12.192187]
[1760131946365,7.6446364,1081.7,1014.6,12.192187]
[1760131949873,7.134994,1082.6,1013.7,11.379375]
[1760131950071,5.0964242,1086.2,1012.6,9.75375]
[1760131950269,5.0964242,1086.2,1004.3,8.9409375]
[1760131950571,5.0964242,1086.2,1002.4,8.128125]
[1760131955975,6.0136382,1081.8,1021.7,9.0657699]
[1760131956177,6.0136382,1084.6,1021.7,9.0657699]
[1760131957077,6.0136382,1087.2,1021.7,9.0657699]
[1760131958375,5.6127289,1088.2,1021.7,9.0657699]
[1760131958376,6.0136382,1088.7,1021.7,9.0657699]
[1760131958875,6.0136382,1087.9,1021.7,9.0657699]
[1760131967879,6.0136382,1086.8,1021.7,9.0657699]
[1760131969179,6.0136382,1088.5,1021.7,9.0657699]
[1760131969785,6.0136382,1088.5,1030.2,9.0657699]
[1760131971381,6.0136382,1088.5,1029.2,9.0657699]
[1760131971984,6.0136382,1088.5,1029.1,9.0657699]
[1760131972488,6.0136382,1088.5,1031.3,8.4613852]
[1760131976292,6.0136382,1088.5,1031.0,8.4613852]
[1760131976491,6.0136382,1088.5,1031.6,9.0657699]
[1760131977392,6.0136382,1088.5,1028.7,9.0657699]
[1760131977888,6.0136382,1088.5,1028.0,9.0657699]
[1760131978589,6.0136382,1088.5,1029.1,9.0657699]
[1760131978989,6.0136382,1088.5,1026.5,9.0657699]
[1760131979493,6.0136382,1088.5,1025.1,9.0657699]
[1760131979892,6.0136382,1088.5,1023.1,9.0657699]
[1760131982796,6.0136382,1068.5,1023.1,9.0657699]
[1760131984596,5.6127289,1089.4,1022.2,8.4613852]
[1760131984793,4.8109105,1093.4,1018.6,7.2526159]
[1760131984996,4.0090921,1093.9,1016.8,6.6482312]
[1760131985193,4.0090921,1093.9,1014.9,6.0438466]
[1760131991005,7.6927318,1062.8,1021.5,11.94263]
[1760131991198,7.6927318,1062.8,1016.8,9.5541044]
[1760131991199,7.6927318,1062.8,1020.8,11.94263]
[1760131993906,7.6927318,1062.8,1019.4,0.16670299]
[1760131995403,7.6927318,1062.8,1019.5,11.94263]
[1760131995608,7.6927318,1062.8,1019.4,0.16670299]
[1760132005013,7.6927318,1054.1,1019.4,0.16670299]
[1760132012922,7.6927318,1059.2,1019.4,0.16670299]
[1760132013220,7.6927318,1062.6,1019.4,0.16670299]
[1760132014121,7.6927318,1065.2,1019.4,0.16670299]
[1760132015028,7.6927318,1063.5,1019.4,0.16670299]
[1760132015323,7.6927318,1067.7,1019.4,0.16670299]
[1760132015528,7.6927318,1068.2,1019.4,0.16670299]
[1760132015725,5.6413366,1069.5,1019.4,0.16670299]
[1760132016224,7.6927318,1069.8,1019.4,0.16670299]
[1760132017029,5.1284878,1071.4,1019.4,0.16670299]
[1760132017326,7.6927318,1073.9,1019.4,0.16670299]
[1760132024232,7.6927318,1072.2,1019.4,0.16670299]
[1760132038549,7.6927318,1072.2,1026.6,11.94263]
[1760132038844,7.6927318,1063.1,1026.6,11.94263]
[1760132039043,7.6927318,1062.9,1026.6,11.94263]
[1760132040046,7.6927318,1066.2,1026.6,11.94263]
[1760132041048,7.6927318,1069.4,1026.6,11.94263]
[1760132041549,7.179883,1066.4,1026.6,11.94263]
[1760132044048,7.179883,1066.4,1031.4,11.146455]
[1760132044349,7.6927318,1067.9,1031.4,11.146455]
[1760132046550,7.6927318,1067.9,1027.7,11.146455]
[1760132046947,7.6927318,1067.9,1028.1,11.146455]
[1760132047745,7.6927318,1067.9,1026.6,11.94263]
[1760132049851,7.6927318,1067.9,1026.2,11.94263]
[1760132058352,7.6927318,1064.1,1026.2,11.94263]
[1760132063960,7.6927318,1064.1,1025.4,11.146455]
[1760132067162,7.6927318,1064.1,1025.7,11.146455]
[1760132070567,7.6927318,1065.2,1025.7,11.146455]
[1760132070864,7.6927318,1069.0,1025.7,11.146455]
[1760132071869,7.6927318,1070.3,1025.7,11.146455]
[1760132078271,7.6927318,1070.3,1031.8,11.94263]
[1760132081069,7.6927318,1070.3,1028.8,11.94263]
[1760132081869,7.6927318,1070.3,1028.7,11.94263]
[1760132085674,7.6927318,1059.7,1028.7,11.94263]
[1760132086074,7.6927318,1059.7,1026.9,11.146455]
[1760132093481,7.6927318,1059.3,1026.9,11.146455]
[1760132095285,7.6927318,1060.7,1026.9,11.146455]
[1760132096886,7.179883,1062.5,1026.9,11.146455]
[1760132097583,7.6927318,1063.7,1026.9,11.146455]
[1760132098089,7.179883,1064.2,1026.9,11.146455]
[1760132100488,7.179883,1064.2,1030.8,11.94263]
[1760132102888,7.179883,1064.2,1031.9,11.94263]
[1760132103691,7.179883,1064.2,1030.4,11.94263]
[1760132104593,7.179883,1064.2,1029.6,11.94263]
[1760132107097,7.179883,1064.2,1027.8,11.94263]
[1760132107998,7.179883,1064.2,1027.6,11.146455]
[1760132109099,7.179883,1064.2,1026.6,11.94263]
[1760132110299,7.179883,1064.2,1025.2,11.94263]
[1760132110496,7.179883,1064.2,1024.6,11.94263]
[1760132112002,7.6927318,1051.4,1024.6,11.94263]
[1760132112796,7.6927318,1054.6,1024.6,11.94263]
[1760132122404,7.6927318,1057.0,1024.6,11.94263]
[1760132124309,7.6927318,1057.0,1026.8,11.94263]
[1760132124909,7.6927318,1058.4,1026.8,11.94263]
[1760132125908,7.6927318,1061.0,1026.8,11.94263]
[1760132127608,7.6927318,1061.1,1026.8,11.94263]
[1760132129308,7.6927318,1063.8,1026.8,11.94263]
[1760132131008,7.6927318,1065.0,1026.8,11.94263]
[1760132132314,7.6927318,1065.7,1029.6,9.5541044]
[1760132133311,7.6927318,1065.7,1027.0,9.5541044]
[1760132133814,7.6927318,1065.7,1026.9,9.5541044]
[1760132137717,7.6927318,1065.7,1035.6,11.94263]
[1760132139515,7.6927318,1069.2,1035.6,11.94263]
[1760132140120,7.179883,1070.1,1035.6,11.94263]
[1760132140121,7.6927318,1068.3,1035.6,11.94263]
[1760132141319,7.179883,1069.3,1035.6,11.94263]
[1760132141320,7.6927318,1070.5,1035.6,11.94263]
[1760132141718,7.6927318,1071.1,1035.6,11.94263]
[1760132141919,7.6927318,1073.1,1035.6,11.94263]
[1760132142818,7.6927318,1076.8,1035.6,11.94263]
[1760132143024,7.6927318,1076.8,1039.7,11.146455]
[1760132143724,7.6927318,1076.8,1038.9,11.146455]
[1760132143920,7.6927318,1076.8,1036.5,11.146455]
[1760132145119,6.1541854,1082.3,1036.5,11.146455]
[1760132145120,7.6927318,1077.3,1036.5,11.146455]
[1760132145722,7.6927318,1078.5,1036.5,11.146455]
[1760132147727,7.6927318,1082.4,1036.5,11.146455]
[1760132152132,7.6927318,1082.4,1042.6,11.94263]
[1760132153432,7.6927318,1090.9,1042.6,11.94263]
[1760132154538,7.6927318,1093.0,1042.6,11.94263]
[1760132155632,5.1284878,1101.7,1042.6,11.94263]
[1760132155633,7.6927318,1094.6,1042.6,11.94263]
[1760132157041,7.6927318,1096.8,1042.6,11.94263]
[1760132157741,7.6927318,1096.7,1042.6,11.94263]
[1760132160242,7.6927318,1101.0,1042.6,11.94263]
[1760132161042,7.6927318,1100.0,1042.6,11.94263]
[1760132161540,7.6927318,1100.0,1047.0,11.146455]
[1760132164045,7.179883,1101.0,1047.0,11.146455]
[1760132164345,5.6413366,1106.8,1038.5,8.757929]
[1760132164543,5.1284878,1110.9,1026.5,7.9617537]
[1760132165547,6.6495975,1103.1,1043.7,9.2489916]
[1760132165844,6.6495975,1103.1,1045.6,9.2489916]
[1760132166546,6.6495975,1103.1,1040.5,9.2489916]
[1760132168848,6.6495975,1103.1,1040.3,9.2489916]
[1760132169644,6.6495975,1103.1,1040.2,9.2489916]
[1760132175556,6.6495975,1103.1,1037.8,9.2489916]
[1760132178353,6.6495975,1103.1,1038.0,9.2489916]
[1760132179659,6.6495975,1091.9,1038.0,9.2489916]
[1760132180860,6.6495975,1091.9,1038.7,9.2489916]
[1760132182458,6.206291,1091.5,1038.7,9.2489916]
[1760132183662,6.206291,1091.5,1039.6,9.2489916]
[1760132184463,6.206291,1091.5,1034.7,9.2489916]
[1760132187861,6.206291,1091.5,1026.0,6.1659944]
[1760132187862,6.206291,1091.5,1034.4,9.2489916]
[1760132188162,5.319678,1087.9,1034.4,9.2489916]
[1760132191669,5.319678,1087.7,1034.4,9.2489916]
[1760132193572,6.6495975,1079.7,1034.4,9.2489916]
[1760132194870,6.6495975,1083.2,1034.4,9.2489916]
[1760132195176,6.6495975,1082.6,1034.4,9.2489916]
[1760132201881,6.6495975,1082.6,1042.1,9.2489916]
[1760132203478,6.6495975,1082.6,1045.0,9.2489916]
[1760132205483,6.6495975,1082.6,1043.0,9.2489916]
[1760132208681,6.6495975,1082.6,1042.0,9.2489916]
[1760132208882,6.6495975,1082.6,1040.6,9.2489916]
[1760132209382,6.6495975,1075.7,1040.6,9.2489916]
[1760132209882,6.6495975,1075.7,1039.7,8.6323922]
[1760132209883,6.6495975,1075.7,1039.0,9.2489916]
[1760132210883,6.6495975,1075.7,1035.0,9.2489916]
[1760132212489,6.6495975,1075.7,1032.1,9.2489916]
[1760132214587,6.6495975,1075.7,1032.2,9.2489916]
[1760132216694,6.206291,1074.2,1032.2,9.2489916]
[1760132218391,6.206291,1074.3,1032.2,9.2489916]
[1760132219390,6.6495975,1075.7,1032.2,9.2489916]
[1760132223200,6.6495975,1079.1,1032.2,9.2489916]
[1760132227901,6.206291,1080.0,1031.3,8.6323922]
[1760132228098,5.319678,1081.3,1027.9,7.3991933]
[1760132228397,4.433065,1085.1,1024.4,6.1659944]
[1760132231599,8.3997393,1079.5,1045.2,11.954681]
[1760132232102,8.3997393,1079.5,1045.9,0.16358534]
[1760132237304,8.3997393,1079.5,1037.0,11.954681]
[1760132237606,8.3997393,1079.5,1049.2,0.16435794]
[1760132237905,8.3997393,1079.5,1037.0,11.954681]
[1760132238102,8.3997393,1079.5,1052.2,0.16418851]
[1760132238407,8.3997393,1079.5,1037.0,11.954681]
[1760132238708,8.3997393,1079.5,1054.7,0.16432341]
[1760132238904,8.3997393,1079.5,1037.0,11.954681]
[1760132239208,8.3997393,1079.5,1055.2,0.16450167]
[1760132239504,8.3997393,1079.5,1037.0,11.954681]
[1760132239811,8.3997393,1079.5,1055.1,0.16454912]
[1760132240103,8.3997393,1079.5,1037.0,11.954681]
[1760132240304,8.3997393,1079.5,1055.4,0.1645464]
[1760132240604,8.3997393,1079.5,1039.4,11.954681]
[1760132240808,8.3997393,1079.5,1055.7,0.16450478]
[1760132241110,8.3997393,1079.5,1039.4,11.954681]
[1760132241405,8.3997393,1079.5,1055.9,0.16442356]
[1760132241706,8.3997393,1079.5,1039.4,11.954681]
[1760132241909,8.3997393,1079.5,1057.8,0.16382021]
[1760132242210,8.3997393,1079.5,1039.4,11.954681]
[1760132242510,8.3997393,1079.5,1058.8,0.16408245]
[1760132242811,8.3997393,1079.5,1039.4,11.954681]
[1760132243112,8.3997393,1079.5,1059.0,0.16411766]
[1760132243309,8.3997393,1079.5,1039.4,11.954681]
[1760132243614,8.3997393,1079.5,1056.0,0.16429936]
[1760132243910,8.3997393,1079.5,1039.4,11.954681]
[1760132244110,8.3997393,1079.5,1056.7,0.16426135]
[1760132244512,8.3997393,1079.5,1039.4,11.954681]
[1760132244814,8.3997393,1079.5,1057.1,0.16426097]
[1760132245015,8.3997393,1079.5,1039.4,11.954681]
[1760132245215,8.3997393,1079.5,1057.6,0.16424585]
[1760132245514,8.3997393,1079.5,1039.4,11.954681]
[1760132245713,8.3997393,1069.4,1038.6,11.954681]
[1760132246311,8.3997393,1069.4,1046.2,0.16468423]
[1760132247713,8.3997393,1070.7,1046.2,0.16468423]
[1760132250815,8.3997393,1072.8,1046.2,0.16468423]
[1760132255218,8.3997393,1078.7,1046.2,0.16468423]
[1760132255622,8.3997393,1080.0,1046.2,0.16468423]
[1760132256625,8.3997393,1081.9,1046.2,0.16468423]
[1760132259428,6.7197914,1086.7,1046.2,0.16468423]
[1760132259725,6.1598088,1088.6,1046.2,0.16468423]
[1760132259924,5.5998262,1090.6,1046.2,0.16468423]
[1760132266437,8.8333258,1079.9,1043.7,12.459286]
[1760132266832,8.8333258,1079.9,1048.8,0.16332469]
[1760132267834,8.8333258,1081.0,1048.8,0.16332469]
[1760132270441,8.8333258,1082.9,1048.8,0.16332469]
[1760132284250,8.8333258,1071.5,1048.8,0.16332469]
[1760132286351,8.2444374,1083.8,1048.8,0.16332469]
[1760132286553,7.0666606,1087.6,1048.8,0.16332469]
[1760132286852,5.8888838,1089.4,1048.8,0.16332469]
[1760132288348,14.722209,1122.4,1048.8,0.16332469]
[1760132293756,9.177757,1086.1,1031.5,12.579484]
[1760132293757,8.6041472,1064.8,1031.5,12.579484]
[1760132294158,8.6041472,1064.8,1039.8,0.16579205]
[1760132304066,5.7360981,1074.6,1039.8,0.16579205]
[1760132304067,8.6041472,1069.3,1039.8,0.16579205]
[1760132311075,8.0305374,1070.1,1039.8,0.16579205]
[1760132311370,6.8833177,1073.5,1039.8,0.16579205]
[1760132311571,5.7360981,1077.0,1039.8,0.16579205]
[1760132314572,7.2762233,1058.5,1015.9,11.07081]
[1760132314771,7.2762233,1058.5,1012.0,11.07081]
[1760132314975,7.2762233,1058.5,1017.0,0.16766519]
[1760132328785,7.2762233,1059.3,1017.0,0.16766519]
[1760132329386,7.11024345,1059.3,1003.5,11.07081]
[1760132329583,6.7911417,1059.4,1003.5,11.07081]
[1760132330488,6.489336,1058.1,1003.5,11.07081]
[1760132330783,6.7911417,1059.4,1003.5,11.07081]
[1760132332488,6.7911417,1059.4,1017.1,0.16757073]
[1760132344297,6.489336,1051.9,1017.1,0.16757073]
[1760132347798,6.489336,1051.8,1017.1,0.16757073]
[1760132348103,6.489336,1057.8,1017.1,0.16757073]
[1760132353409,6.32273237,1061.3,998.47,11.07081]
[1760132353610,6.7911417,1063.7,998.47,11.07081]
[1760132354410,14.1208187,1063.7,998.47,11.07081]
[1760132355413,7.329677,1066.4,998.47,11.07081]